[Event "Titled Tuesday Blitz November 14 Early 2023"]
[White "Hajiyev, Kanan"]
[Black "Karamsetty, Jeevan"]
[WhiteFideId "13404148"]
[BlackFideId "2025337"]
[WhiteElo "2475"]
[BlackElo "2593"]
[Result "1-0"]
[Round "10"]
[TimeControl "180+1"]
[Date "2023.11.14"]
[WhiteClock "0:00:14"]
[BlackClock "0:00:00"]
[Board "94"]

1. d4 {[%clk 0:03:00]}  d5 {[%clk 0:02:54]} 2. Nf3 {[%clk 0:03:01]}  c5 {[%clk 0:02:53]} 3. c4 {[%clk 0:03:02]}  e6 {[%clk 0:02:52]} 4. Nc3 {[%clk 0:03:01]}  Nf6 {[%clk 0:02:51]} 5. cxd5 {[%clk 0:03:01]}  exd5 {[%clk 0:02:50]} 6. Bg5 {[%clk 0:03:02]}  cxd4 {[%clk 0:02:45]} 7. Nxd4 {[%clk 0:03:03]}  Be7 {[%clk 0:02:44]} 8. e3 {[%clk 0:03:03]}  O-O {[%clk 0:02:44]} 9. Bd3 {[%clk 0:03:04]}  h6 {[%clk 0:02:44]} 10. Bh4 {[%clk 0:03:04]}  Nc6 {[%clk 0:02:44]} 11. Nxc6 {[%clk 0:02:58]}  bxc6 {[%clk 0:02:45]} 12. O-O {[%clk 0:02:57]}  Be6 {[%clk 0:02:40]} 13. Rc1 {[%clk 0:02:58]}  c5 {[%clk 0:02:40]} 14. Na4 {[%clk 0:02:58]}  c4 {[%clk 0:02:40]} 15. Bb1 {[%clk 0:02:58]}  g5 {[%clk 0:02:37]} 16. Bg3 {[%clk 0:02:58]}  Bd6 {[%clk 0:02:31]} 17. Qc2 {[%clk 0:02:55]}  Kg7 {[%clk 0:02:22]} 18. Rfd1 {[%clk 0:02:54]}  Bxg3 {[%clk 0:02:15]} 19. hxg3 {[%clk 0:02:55]}  Qa5 {[%clk 0:02:07]} 20. Nc3 {[%clk 0:02:44]}  Rh8 {[%clk 0:02:05]} 21. Ne2 {[%clk 0:02:28]}  Bg4 {[%clk 0:01:55]} 22. f3 {[%clk 0:02:14]}  Bh5 {[%clk 0:01:55]} 23. Nd4 {[%clk 0:02:11]}  Bg6 {[%clk 0:01:53]} 24. Qc3 {[%clk 0:02:00]}  Qxc3 {[%clk 0:01:51]} 25. bxc3 {[%clk 0:02:01]}  Rab8 {[%clk 0:01:48]} 26. Bxg6 {[%clk 0:01:53]}  Kxg6 {[%clk 0:01:48]} 27. Rb1 {[%clk 0:01:54]}  Rhc8 {[%clk 0:01:46]} 28. Kf2 {[%clk 0:01:47]}  Nd7 {[%clk 0:01:41]} 29. g4 {[%clk 0:01:29]}  Nc5 {[%clk 0:01:41]} 30. Nf5 {[%clk 0:01:20]}  Nd3+ {[%clk 0:01:40]} 31. Kg3 {[%clk 0:01:20]}  Rh8 {[%clk 0:00:56]} 32. Rh1 {[%clk 0:01:16]}  h5 {[%clk 0:00:47]} 33. Ne7+ {[%clk 0:00:56]}  Kf6 {[%clk 0:00:47]} 34. Nxd5+ {[%clk 0:00:56]}  Ke5 {[%clk 0:00:47]} 35. Ne7 {[%clk 0:00:49]}  h4+ {[%clk 0:00:45]} 36. Kh2 {[%clk 0:00:45]}  Ke6 {[%clk 0:00:30]} 37. Nc6 {[%clk 0:00:43]}  Rb6 {[%clk 0:00:16]} 38. Nxa7 {[%clk 0:00:39]}  Ra6 {[%clk 0:00:12]} 39. Nb5 {[%clk 0:00:32]}  Rxa2 {[%clk 0:00:12]} 40. Nd4+ {[%clk 0:00:32]}  Kd5 {[%clk 0:00:06]} 41. Rb5+ {[%clk 0:00:29]}  Kd6 {[%clk 0:00:06]} 42. Rhb1 {[%clk 0:00:25]}  h3 {[%clk 0:00:06]} 43. Rb6+ {[%clk 0:00:26]}  Ke7 {[%clk 0:00:07]} 44. Rb7+ {[%clk 0:00:19]}  Kf6 {[%clk 0:00:07]} 45. R1b6+ {[%clk 0:00:18]}  Ke5 {[%clk 0:00:04]} 46. Re7+ {[%clk 0:00:16]}  Kd5 {[%clk 0:00:00]} 47. e4+ {[%clk 0:00:14]} 1-0


[Site "https://www.chess.com"]

[Event "Titled Tuesday Blitz November 14 Early 2023"]
[White "Yurasova, Daria"]
[Black "Perez Rodriguez, Luis Manuel"]
[WhiteFideId "34146919"]
[BlackFideId "3503364"]
[WhiteElo "2471"]
[BlackElo "2587"]
[Result "1-0"]
[Round "10"]
[TimeControl "180+1"]
[Date "2023.11.14"]
[WhiteClock "0:00:49"]
[BlackClock "0:00:01"]
[Board "95"]

1. d4 {[%clk 0:02:55]}  d5 {[%clk 0:02:05]} 2. Nf3 {[%clk 0:02:54]}  Nf6 {[%clk 0:02:05]} 3. Bf4 {[%clk 0:02:54]}  g6 {[%clk 0:02:03]} 4. e3 {[%clk 0:02:54]}  Bg7 {[%clk 0:02:03]} 5. Nbd2 {[%clk 0:02:55]}  c5 {[%clk 0:02:03]} 6. c3 {[%clk 0:02:55]}  b6 {[%clk 0:02:03]} 7. Bb5+ {[%clk 0:02:53]}  Bd7 {[%clk 0:02:03]} 8. Bd3 {[%clk 0:02:53]}  O-O {[%clk 0:02:02]} 9. Qe2 {[%clk 0:02:53]}  Bc6 {[%clk 0:02:00]} 10. Ne5 {[%clk 0:02:51]}  Bb7 {[%clk 0:02:00]} 11. h4 {[%clk 0:02:50]}  Ne4 {[%clk 0:01:53]} 12. h5 {[%clk 0:02:45]}  Nd7 {[%clk 0:01:53]} 13. hxg6 {[%clk 0:02:43]}  hxg6 {[%clk 0:01:49]} 14. Bxe4 {[%clk 0:02:43]}  dxe4 {[%clk 0:01:48]} 15. Qg4 {[%clk 0:02:42]}  Nxe5 {[%clk 0:01:36]} 16. Bxe5 {[%clk 0:02:42]}  Qd5 {[%clk 0:01:29]} 17. Qh4 {[%clk 0:02:38]}  f6 {[%clk 0:01:28]} 18. Bg3 {[%clk 0:02:24]}  cxd4 {[%clk 0:01:27]} 19. cxd4 {[%clk 0:02:24]}  Rac8 {[%clk 0:01:27]} 20. O-O {[%clk 0:02:18]}  Rc2 {[%clk 0:01:11]} 21. Nb3 {[%clk 0:02:18]}  Kf7 {[%clk 0:01:09]} 22. Qg4 {[%clk 0:02:08]}  Rh8 {[%clk 0:00:58]} 23. Rac1 {[%clk 0:02:04]}  Bc8 {[%clk 0:00:43]} 24. Qd1 {[%clk 0:01:55]}  Rxb2 {[%clk 0:00:43]} 25. Rc7 {[%clk 0:01:51]}  Ba6 {[%clk 0:00:38]} 26. Re1 {[%clk 0:01:50]}  Qg5 {[%clk 0:00:20]} 27. Bd6 {[%clk 0:01:29]}  Re8 {[%clk 0:00:11]} 28. Rxa7 {[%clk 0:01:21]}  Bd3 {[%clk 0:00:11]} 29. Nc1 {[%clk 0:01:18]}  Bc4 {[%clk 0:00:09]} 30. Qa4 {[%clk 0:01:17]}  Be6 {[%clk 0:00:09]} 31. Bxe7 {[%clk 0:01:11]}  Rxe7 {[%clk 0:00:08]} 32. Rxe7+ {[%clk 0:01:12]}  Kxe7 {[%clk 0:00:08]} 33. Qa3+ {[%clk 0:01:13]}  Kf7 {[%clk 0:00:08]} 34. Qxb2 {[%clk 0:01:11]}  Bh3 {[%clk 0:00:09]} 35. Qb3+ {[%clk 0:01:02]}  Kf8 {[%clk 0:00:08]} 36. Qb4+ {[%clk 0:01:01]}  Kg8 {[%clk 0:00:08]} 37. Qc4+ {[%clk 0:01:01]}  Kh7 {[%clk 0:00:09]} 38. Qf1 {[%clk 0:01:00]}  Bg4 {[%clk 0:00:07]} 39. Ne2 {[%clk 0:01:00]}  f5 {[%clk 0:00:06]} 40. Rc1 {[%clk 0:00:57]}  Qh5 {[%clk 0:00:04]} 41. Nf4 {[%clk 0:00:55]}  Qh4 {[%clk 0:00:04]} 42. g3 {[%clk 0:00:55]}  Qh6 {[%clk 0:00:04]} 43. Rc7 {[%clk 0:00:51]}  Bf3 {[%clk 0:00:01]} 44. Qh3 {[%clk 0:00:49]} 1-0


[Site "https://www.chess.com"]

[Event "Titled Tuesday Blitz November 14 Early 2023"]
[White "Ramla2020"]
[Black "Jaskolka, Tomasz"]
[BlackFideId "1170791"]
[WhiteElo "2454"]
[BlackElo "2552"]
[Result "1-0"]
[Round "10"]
[TimeControl "180+1"]
[Date "2023.11.14"]
[WhiteClock "0:00:31"]
[BlackClock "0:00:15"]
[Board "96"]

1. c4 {[%clk 0:03:00]}  e5 {[%clk 0:02:58]} 2. g3 {[%clk 0:02:59]}  Nf6 {[%clk 0:02:58]} 3. Bg2 {[%clk 0:03:00]}  d5 {[%clk 0:02:59]} 4. cxd5 {[%clk 0:03:00]}  Nxd5 {[%clk 0:03:00]} 5. Nf3 {[%clk 0:03:00]}  Nc6 {[%clk 0:02:59]} 6. O-O {[%clk 0:03:00]}  Be6 {[%clk 0:03:00]} 7. d4 {[%clk 0:03:00]}  e4 {[%clk 0:02:51]} 8. Ne5 {[%clk 0:02:59]}  Nxe5 {[%clk 0:02:46]} 9. dxe5 {[%clk 0:03:00]}  f5 {[%clk 0:02:45]} 10. exf6 {[%clk 0:02:47]}  Nxf6 {[%clk 0:02:46]} 11. Nc3 {[%clk 0:02:42]}  Bf5 {[%clk 0:02:35]} 12. Bg5 {[%clk 0:02:34]}  Be7 {[%clk 0:02:23]} 13. Qb3 {[%clk 0:02:29]}  Qc8 {[%clk 0:02:17]} 14. Bxf6 {[%clk 0:02:23]}  Bxf6 {[%clk 0:02:18]} 15. Nxe4 {[%clk 0:02:23]}  Be7 {[%clk 0:02:14]} 16. Rac1 {[%clk 0:02:17]}  c6 {[%clk 0:02:04]} 17. Nc5 {[%clk 0:02:09]}  Bxc5 {[%clk 0:01:40]} 18. Rxc5 {[%clk 0:02:10]}  Be6 {[%clk 0:01:40]} 19. Re5 {[%clk 0:02:08]}  Kf7 {[%clk 0:01:41]} 20. Qe3 {[%clk 0:02:06]}  Re8 {[%clk 0:01:38]} 21. b3 {[%clk 0:01:47]}  Qd7 {[%clk 0:01:25]} 22. Be4 {[%clk 0:01:43]}  Kg8 {[%clk 0:01:18]} 23. Re1 {[%clk 0:01:36]}  Bg4 {[%clk 0:01:04]} 24. Rxe8+ {[%clk 0:01:21]}  Rxe8 {[%clk 0:01:04]} 25. Qd3 {[%clk 0:01:18]}  Qxd3 {[%clk 0:00:50]} 26. Bxd3 {[%clk 0:01:19]}  Be6 {[%clk 0:00:47]} 27. e4 {[%clk 0:01:14]}  g6 {[%clk 0:00:47]} 28. f4 {[%clk 0:01:14]}  Kg7 {[%clk 0:00:47]} 29. Kf2 {[%clk 0:01:14]}  a5 {[%clk 0:00:48]} 30. Ke3 {[%clk 0:01:15]}  a4 {[%clk 0:00:48]} 31. bxa4 {[%clk 0:01:12]}  Ra8 {[%clk 0:00:47]} 32. Bc2 {[%clk 0:01:11]}  Bxa2 {[%clk 0:00:47]} 33. Rd1 {[%clk 0:01:11]}  Be6 {[%clk 0:00:47]} 34. Rb1 {[%clk 0:01:08]}  Ra7 {[%clk 0:00:44]} 35. Kd4 {[%clk 0:01:08]}  Kf6 {[%clk 0:00:44]} 36. Kc5 {[%clk 0:01:07]}  Bc8 {[%clk 0:00:41]} 37. e5+ {[%clk 0:00:59]}  Ke7 {[%clk 0:00:40]} 38. Bb3 {[%clk 0:00:56]}  Ra5+ {[%clk 0:00:36]} 39. Kb4 {[%clk 0:00:55]}  Ra7 {[%clk 0:00:34]} 40. Rd1 {[%clk 0:00:54]}  b6 {[%clk 0:00:29]} 41. Rd6 {[%clk 0:00:52]}  Bd7 {[%clk 0:00:29]} 42. Kc3 {[%clk 0:00:48]}  c5 {[%clk 0:00:27]} 43. Rxb6 {[%clk 0:00:47]}  Bxa4 {[%clk 0:00:26]} 44. Bxa4 {[%clk 0:00:40]}  Rxa4 {[%clk 0:00:26]} 45. Rb7+ {[%clk 0:00:35]}  Ke6 {[%clk 0:00:27]} 46. Rxh7 {[%clk 0:00:36]}  g5 {[%clk 0:00:24]} 47. Rh6+ {[%clk 0:00:35]}  Kd5 {[%clk 0:00:25]} 48. Rd6+ {[%clk 0:00:34]}  Ke4 {[%clk 0:00:25]} 49. e6 {[%clk 0:00:34]}  Ra8 {[%clk 0:00:20]} 50. fxg5 {[%clk 0:00:33]}  Kf5 {[%clk 0:00:21]} 51. h4 {[%clk 0:00:31]}  Ke5 {[%clk 0:00:21]} 52. Rc6 {[%clk 0:00:31]}  Kd5 {[%clk 0:00:21]} 53. Rb6 {[%clk 0:00:31]}  Ra3+ {[%clk 0:00:22]} 54. Kd2 {[%clk 0:00:30]}  Ra2+ {[%clk 0:00:21]} 55. Ke3 {[%clk 0:00:30]}  Ra3+ {[%clk 0:00:20]} 56. Kf4 {[%clk 0:00:31]}  Ra1 {[%clk 0:00:17]} 57. Kg4 {[%clk 0:00:28]}  Re1 {[%clk 0:00:16]} 58. g6 {[%clk 0:00:28]}  Re4+ {[%clk 0:00:12]} 59. Kg5 {[%clk 0:00:28]}  Re3 {[%clk 0:00:13]} 60. g4 {[%clk 0:00:27]}  c4 {[%clk 0:00:08]} 61. g7 {[%clk 0:00:27]}  Re5+ {[%clk 0:00:07]} 62. Kf6 {[%clk 0:00:26]}  c3 {[%clk 0:00:06]} 63. Rb5+ {[%clk 0:00:24]}  Kd4 {[%clk 0:00:06]} 64. Rxe5 {[%clk 0:00:25]}  c2 {[%clk 0:00:07]} 65. Re1 {[%clk 0:00:25]}  Kd3 {[%clk 0:00:07]} 66. Rc1 {[%clk 0:00:25]}  Kc3 {[%clk 0:00:07]} 67. Rxc2+ {[%clk 0:00:26]}  Kxc2 {[%clk 0:00:06]} 68. g8=Q {[%clk 0:00:27]}  Kc3 {[%clk 0:00:06]} 69. e7 {[%clk 0:00:28]}  Kd4 {[%clk 0:00:07]} 70. e8=Q {[%clk 0:00:29]}  Kc5 {[%clk 0:00:08]} 71. Kg5 {[%clk 0:00:29]}  Kd6 {[%clk 0:00:09]} 72. h5 {[%clk 0:00:29]}  Kc5 {[%clk 0:00:09]} 73. h6 {[%clk 0:00:30]}  Kd6 {[%clk 0:00:10]} 74. h7 {[%clk 0:00:30]}  Kc5 {[%clk 0:00:11]} 75. Kf6 {[%clk 0:00:30]}  Kd6 {[%clk 0:00:12]} 76. Kf7 {[%clk 0:00:30]}  Kc5 {[%clk 0:00:13]} 77. g5 {[%clk 0:00:31]}  Kd6 {[%clk 0:00:13]} 78. g6 {[%clk 0:00:31]}  Kc5 {[%clk 0:00:14]} 79. g7 {[%clk 0:00:32]}  Kd6 {[%clk 0:00:15]} 80. h8=Q {[%clk 0:00:33]}  Kc5 {[%clk 0:00:16]} 81. Qgf8+ {[%clk 0:00:33]}  Kd5 {[%clk 0:00:16]} 82. g8=Q {[%clk 0:00:32]}  Kc4 {[%clk 0:00:15]} 83. Qg4+ {[%clk 0:00:31]}  Kd5 {[%clk 0:00:15]} 84. Qhh5# {[%clk 0:00:31]} 1-0


[Site "https://www.chess.com"]

[Event "Titled Tuesday Blitz November 14 Early 2023"]
[White "Iskusnyh, Sergei"]
[Black "Jesseinkman"]
[WhiteFideId "4120027"]
[WhiteElo "2539"]
[BlackElo "2449"]
[Result "1-0"]
[Round "10"]
[TimeControl "180+1"]
[Date "2023.11.14"]
[WhiteClock "0:00:13"]
[BlackClock "0:00:06"]
[Board "97"]

1. d4 {[%clk 0:03:00]}  d5 {[%clk 0:02:56]} 2. c4 {[%clk 0:03:00]}  e6 {[%clk 0:02:57]} 3. Nf3 {[%clk 0:02:57]}  a6 {[%clk 0:02:57]} 4. Nbd2 {[%clk 0:02:54]}  dxc4 {[%clk 0:02:54]} 5. Nxc4 {[%clk 0:02:54]}  b5 {[%clk 0:02:49]} 6. Nce5 {[%clk 0:02:53]}  c5 {[%clk 0:02:47]} 7. g3 {[%clk 0:02:49]}  Bb7 {[%clk 0:02:46]} 8. Bg2 {[%clk 0:02:48]}  cxd4 {[%clk 0:02:42]} 9. Nxf7 {[%clk 0:02:46]}  Bb4+ {[%clk 0:02:10]} 10. Bd2 {[%clk 0:02:25]}  Bxd2+ {[%clk 0:02:02]} 11. Qxd2 {[%clk 0:02:25]}  Kxf7 {[%clk 0:01:31]} 12. Ne5+ {[%clk 0:02:23]}  Ke8 {[%clk 0:01:21]} 13. Bxb7 {[%clk 0:02:22]}  Ra7 {[%clk 0:01:19]} 14. Bg2 {[%clk 0:02:08]}  Nf6 {[%clk 0:01:01]} 15. Rd1 {[%clk 0:01:57]}  Ke7 {[%clk 0:00:49]} 16. Qb4+ {[%clk 0:01:54]}  Qd6 {[%clk 0:00:47]} 17. Qxd6+ {[%clk 0:00:54]}  Kxd6 {[%clk 0:00:47]} 18. f4 {[%clk 0:00:54]}  Rc7 {[%clk 0:00:37]} 19. Rxd4+ {[%clk 0:00:53]}  Ke7 {[%clk 0:00:36]} 20. Rd2 {[%clk 0:00:52]}  Nbd7 {[%clk 0:00:20]} 21. Nc6+ {[%clk 0:00:45]}  Kf7 {[%clk 0:00:20]} 22. O-O {[%clk 0:00:45]}  Rhc8 {[%clk 0:00:19]} 23. Ne5+ {[%clk 0:00:45]}  Ke7 {[%clk 0:00:19]} 24. Nxd7 {[%clk 0:00:43]}  Nxd7 {[%clk 0:00:19]} 25. Rfd1 {[%clk 0:00:43]}  Nf6 {[%clk 0:00:17]} 26. Bf3 {[%clk 0:00:41]}  Rc1 {[%clk 0:00:14]} 27. Rxc1 {[%clk 0:00:39]}  Rxc1+ {[%clk 0:00:14]} 28. Kf2 {[%clk 0:00:40]}  Nd7 {[%clk 0:00:13]} 29. Be4 {[%clk 0:00:28]}  g6 {[%clk 0:00:13]} 30. Rc2 {[%clk 0:00:27]}  Ra1 {[%clk 0:00:13]} 31. a3 {[%clk 0:00:24]}  Nb6 {[%clk 0:00:10]} 32. Rc6 {[%clk 0:00:21]}  Nc4 {[%clk 0:00:09]} 33. Rxa6 {[%clk 0:00:21]}  Nxb2 {[%clk 0:00:09]} 34. Ra7+ {[%clk 0:00:19]}  Kd6 {[%clk 0:00:05]} 35. Rxh7 {[%clk 0:00:18]}  Rxa3 {[%clk 0:00:05]} 36. Bxg6 {[%clk 0:00:18]}  Nd1+ {[%clk 0:00:04]} 37. Ke1 {[%clk 0:00:17]}  Ne3 {[%clk 0:00:04]} 38. h4 {[%clk 0:00:16]}  b4 {[%clk 0:00:04]} 39. Rb7 {[%clk 0:00:15]}  b3 {[%clk 0:00:02]} 40. h5 {[%clk 0:00:15]}  Nc2+ {[%clk 0:00:02]} 41. Kf2 {[%clk 0:00:15]}  Nd4 {[%clk 0:00:03]} 42. h6 {[%clk 0:00:14]}  Ra2 {[%clk 0:00:03]} 43. Bd3 {[%clk 0:00:13]}  b2 {[%clk 0:00:03]} 44. h7 {[%clk 0:00:13]}  Ra8 {[%clk 0:00:03]} 45. Rxb2 {[%clk 0:00:11]}  Rh8 {[%clk 0:00:04]} 46. Rb7 {[%clk 0:00:11]}  Nc6 {[%clk 0:00:04]} 47. Rg7 {[%clk 0:00:11]}  Ne7 {[%clk 0:00:04]} 48. g4 {[%clk 0:00:11]}  Rf8 {[%clk 0:00:04]} 49. Kg3 {[%clk 0:00:11]}  Rh8 {[%clk 0:00:03]} 50. g5 {[%clk 0:00:11]}  Kd5 {[%clk 0:00:03]} 51. g6 {[%clk 0:00:11]}  Kd4 {[%clk 0:00:04]} 52. Kg4 {[%clk 0:00:11]}  Kd5 {[%clk 0:00:04]} 53. Kg5 {[%clk 0:00:11]}  Kd6 {[%clk 0:00:04]} 54. Rxe7 {[%clk 0:00:11]}  Kxe7 {[%clk 0:00:04]} 55. g7 {[%clk 0:00:11]}  Rd8 {[%clk 0:00:04]} 56. g8=Q {[%clk 0:00:11]}  Rd7 {[%clk 0:00:04]} 57. Qg7+ {[%clk 0:00:11]}  Kd6 {[%clk 0:00:05]} 58. Qxd7+ {[%clk 0:00:12]}  Kxd7 {[%clk 0:00:05]} 59. h8=Q {[%clk 0:00:13]}  Ke7 {[%clk 0:00:06]} 60. Qg7+ {[%clk 0:00:13]} 1-0


[Site "https://www.chess.com"]

[Event "Titled Tuesday Blitz November 14 Early 2023"]
[White "Nastase, Robert-Paul"]
[Black "LeoLV10"]
[WhiteFideId "1221175"]
[WhiteElo "2408"]
[BlackElo "2514"]
[Result "0-1"]
[Round "10"]
[TimeControl "180+1"]
[Date "2023.11.14"]
[WhiteClock "0:00:05"]
[BlackClock "0:00:05"]
[Board "103"]

1. a3 {[%clk 0:03:00]}  g6 {[%clk 0:02:53]} 2. h4 {[%clk 0:02:59]}  Bg7 {[%clk 0:02:54]} 3. h5 {[%clk 0:02:59]}  Nf6 {[%clk 0:02:53]} 4. h6 {[%clk 0:02:51]}  Bf8 {[%clk 0:02:53]} 5. d3 {[%clk 0:02:47]}  d5 {[%clk 0:02:53]} 6. Bg5 {[%clk 0:02:45]}  Nbd7 {[%clk 0:02:53]} 7. Nf3 {[%clk 0:02:39]}  c6 {[%clk 0:02:52]} 8. Nc3 {[%clk 0:02:31]}  e5 {[%clk 0:02:50]} 9. e4 {[%clk 0:02:29]}  d4 {[%clk 0:02:50]} 10. Ne2 {[%clk 0:02:27]}  Be7 {[%clk 0:02:49]} 11. g3 {[%clk 0:02:00]}  Qc7 {[%clk 0:02:47]} 12. Bh3 {[%clk 0:01:51]}  Nf8 {[%clk 0:02:43]} 13. c3 {[%clk 0:01:46]}  Bxh3 {[%clk 0:02:38]} 14. Rxh3 {[%clk 0:01:43]}  Qd7 {[%clk 0:02:37]} 15. Rh4 {[%clk 0:01:30]}  dxc3 {[%clk 0:02:36]} 16. Nxc3 {[%clk 0:01:21]}  Qc7 {[%clk 0:02:22]} 17. d4 {[%clk 0:01:18]}  exd4 {[%clk 0:02:17]} 18. Qxd4 {[%clk 0:01:13]}  Ne6 {[%clk 0:02:13]} 19. Qe3 {[%clk 0:00:54]}  O-O-O {[%clk 0:02:01]} 20. Qxa7 {[%clk 0:00:51]}  Nxg5 {[%clk 0:01:53]} 21. Nxg5 {[%clk 0:00:52]}  Bd6 {[%clk 0:01:46]} 22. O-O-O {[%clk 0:00:44]}  Rhf8 {[%clk 0:01:25]} 23. f4 {[%clk 0:00:32]}  Nd7 {[%clk 0:01:18]} 24. Nxh7 {[%clk 0:00:27]}  Rfe8 {[%clk 0:00:49]} 25. Ng5 {[%clk 0:00:27]}  Nb8 {[%clk 0:00:43]} 26. h7 {[%clk 0:00:25]}  f6 {[%clk 0:00:41]} 27. h8=Q {[%clk 0:00:20]}  Rxh8 {[%clk 0:00:38]} 28. Ne6 {[%clk 0:00:20]}  Bxf4+ {[%clk 0:00:34]} 29. Rxf4 {[%clk 0:00:18]}  Rxd1+ {[%clk 0:00:33]} 30. Nxd1 {[%clk 0:00:19]}  Qe7 {[%clk 0:00:27]} 31. Nd4 {[%clk 0:00:19]}  g5 {[%clk 0:00:25]} 32. Rf1 {[%clk 0:00:15]}  Rd8 {[%clk 0:00:24]} 33. Nc3 {[%clk 0:00:14]}  Qe5 {[%clk 0:00:23]} 34. Rd1 {[%clk 0:00:13]}  Qxg3 {[%clk 0:00:20]} 35. Ne6 {[%clk 0:00:11]}  Rxd1+ {[%clk 0:00:19]} 36. Nxd1 {[%clk 0:00:11]}  Qe5 {[%clk 0:00:13]} 37. Nc5 {[%clk 0:00:11]}  Qe7 {[%clk 0:00:13]} 38. Ne3 {[%clk 0:00:08]}  Qc7 {[%clk 0:00:12]} 39. Nf5 {[%clk 0:00:08]}  g4 {[%clk 0:00:09]} 40. Nxb7 {[%clk 0:00:04]}  Qf4+ {[%clk 0:00:06]} 41. Kd1 {[%clk 0:00:03]}  Qf1+ {[%clk 0:00:06]} 42. Kc2 {[%clk 0:00:04]}  Qe2+ {[%clk 0:00:05]} 43. Kb3 {[%clk 0:00:05]}  Qd3+ {[%clk 0:00:05]} 44. Ka4 {[%clk 0:00:05]}  Qb5# {[%clk 0:00:05]} 0-1


[Site "https://www.chess.com"]

[Event "Titled Tuesday Blitz November 14 Early 2023"]
[White "Cristi_Coca"]
[Black "Zivic, Dragan"]
[BlackFideId "904740"]
[WhiteElo "2509"]
[BlackElo "2347"]
[Result "1-0"]
[Round "10"]
[TimeControl "180+1"]
[Date "2023.11.14"]
[WhiteClock "0:02:39"]
[BlackClock "0:02:30"]
[Board "107"]

1. e4 {[%clk 0:03:00]}  c6 {[%clk 0:02:59]} 2. d4 {[%clk 0:03:01]}  d5 {[%clk 0:02:58]} 3. Nc3 {[%clk 0:03:01]}  dxe4 {[%clk 0:02:58]} 4. Nxe4 {[%clk 0:03:02]}  Bf5 {[%clk 0:02:58]} 5. Ng3 {[%clk 0:03:03]}  Bg6 {[%clk 0:02:58]} 6. N1e2 {[%clk 0:03:04]}  Nf6 {[%clk 0:02:55]} 7. Nf4 {[%clk 0:03:04]}  e5 {[%clk 0:02:52]} 8. dxe5 {[%clk 0:03:03]}  Qxd1+ {[%clk 0:02:51]} 9. Kxd1 {[%clk 0:03:03]}  Ng4 {[%clk 0:02:52]} 10. Be3 {[%clk 0:02:42]}  Nxe5 {[%clk 0:02:45]} 11. Nxg6 {[%clk 0:02:39]}  hxg6 {[%clk 0:02:44]} 12. c3 {[%clk 0:02:39]}  Nbd7 {[%clk 0:02:43]} 13. Kc2 {[%clk 0:02:39]}  Bc5 {[%clk 0:02:42]} 14. Bxc5 {[%clk 0:02:38]}  Nxc5 {[%clk 0:02:30]} 15. Re1 {[%clk 0:02:39]} 1-0


[Site "https://www.chess.com"]

[Event "Titled Tuesday Blitz November 14 Early 2023"]
[White "Belov, Alexei"]
[Black "Buscar, Michael"]
[WhiteFideId "4128206"]
[BlackFideId "2603616"]
[WhiteElo "2586"]
[BlackElo "2310"]
[Result "1/2-1/2"]
[Round "10"]
[TimeControl "180+1"]
[Date "2023.11.14"]
[WhiteClock "0:00:59"]
[BlackClock "0:02:00"]
[Board "111"]

1. e4 {[%clk 0:03:00]}  c5 {[%clk 0:02:59]} 2. Nf3 {[%clk 0:03:00]}  Nc6 {[%clk 0:03:00]} 3. d4 {[%clk 0:03:00]}  cxd4 {[%clk 0:03:01]} 4. Nxd4 {[%clk 0:03:01]}  Nf6 {[%clk 0:03:01]} 5. Nc3 {[%clk 0:03:00]}  e5 {[%clk 0:03:02]} 6. Ndb5 {[%clk 0:03:01]}  h6 {[%clk 0:03:02]} 7. Nd6+ {[%clk 0:02:52]}  Bxd6 {[%clk 0:03:02]} 8. Qxd6 {[%clk 0:02:52]}  Qe7 {[%clk 0:03:03]} 9. Qxe7+ {[%clk 0:02:51]}  Kxe7 {[%clk 0:03:04]} 10. Be3 {[%clk 0:02:48]}  Rd8 {[%clk 0:03:02]} 11. f3 {[%clk 0:02:45]}  d5 {[%clk 0:02:59]} 12. exd5 {[%clk 0:02:45]}  Nxd5 {[%clk 0:02:59]} 13. Nxd5+ {[%clk 0:02:43]}  Rxd5 {[%clk 0:03:00]} 14. Bc4 {[%clk 0:02:41]}  Rd8 {[%clk 0:02:57]} 15. c3 {[%clk 0:02:36]}  Be6 {[%clk 0:02:56]} 16. Bb5 {[%clk 0:02:31]}  f5 {[%clk 0:02:50]} 17. Ke2 {[%clk 0:02:30]}  Rac8 {[%clk 0:02:45]} 18. Rhd1 {[%clk 0:02:14]}  Rxd1 {[%clk 0:02:38]} 19. Kxd1 {[%clk 0:02:14]}  b6 {[%clk 0:02:38]} 20. Ke2 {[%clk 0:02:05]}  Na5 {[%clk 0:02:35]} 21. Kf2 {[%clk 0:01:50]}  Nc4 {[%clk 0:02:30]} 22. Bxc4 {[%clk 0:01:48]}  Rxc4 {[%clk 0:02:28]} 23. Rc1 {[%clk 0:01:43]}  Ra4 {[%clk 0:02:21]} 24. a3 {[%clk 0:01:42]}  Bb3 {[%clk 0:02:21]} 25. Re1 {[%clk 0:01:39]}  Kf6 {[%clk 0:02:15]} 26. Re2 {[%clk 0:01:35]}  Rc4 {[%clk 0:02:13]} 27. g3 {[%clk 0:01:26]}  Rc6 {[%clk 0:02:12]} 28. Rd2 {[%clk 0:01:25]}  Ke7 {[%clk 0:02:08]} 29. h4 {[%clk 0:01:22]}  Rd6 {[%clk 0:02:08]} 30. Ke1 {[%clk 0:01:14]}  Rxd2 {[%clk 0:02:05]} 31. Kxd2 {[%clk 0:01:14]}  h5 {[%clk 0:02:04]} 32. f4 {[%clk 0:01:11]}  e4 {[%clk 0:02:02]} 33. Bd4 {[%clk 0:01:06]}  g6 {[%clk 0:02:02]} 34. Ke3 {[%clk 0:01:07]}  Ke6 {[%clk 0:02:02]} 35. Be5 {[%clk 0:01:06]}  Kd5 {[%clk 0:02:01]} 36. Bb8 {[%clk 0:01:06]}  a6 {[%clk 0:02:01]} 37. Ba7 {[%clk 0:01:06]}  b5 {[%clk 0:02:01]} 38. Kd2 {[%clk 0:01:03]}  a5 {[%clk 0:02:01]} 39. Bb6 {[%clk 0:01:02]}  a4 {[%clk 0:02:01]} 40. Be3 {[%clk 0:01:03]}  Kc4 {[%clk 0:02:00]} 41. Bd4 {[%clk 0:00:59]} 1/2-1/2


[Site "https://www.chess.com"]